[Event "44th Chess Olympiad Women 2022"]
[Site "Chennai"]
[Date "2022.08.05"]
[Round "7.15"]
[White "Hoang, Thanh Trang"]
[Black "Martynkova, Olena"]
[Result "1/2-1/2"]
[WhiteElo "2376"]
[BlackElo "2213"]
[Annotator "TA"]
[PlyCount "135"]
[EventDate "2022.??.??"]
[TimeControl "60"]

{[%evp 12,135,23,20,24,21,15,8,40,46,24,25,25,0,0,0,4,0,25,0,0,0,17,-14,14,0,
29,0,46,31,32,3,7,10,0,-22,-31,-55,-14,-23,14,12,12,12,13,10,8,10,9,5,21,20,36,
35,19,38,18,7,18,11,18,7,16,12,11,16,18,16,15,0,77,33,31,17,20,0,10,9,9,9,9,0,
12,8,12,12,77,64,68,38,167,145,172,156,175,159,166,160,152,154,148,142,203,200,
198,102,189,183,585,8,8,8,8,8,8,8,8,0,8,8,8,0,0,0,0,0]} 1. d4 {[%emt 0:00:16]}
d6 {[%emt 0:00:45]} 2. e4 {[%emt 0:02:21]} Nf6 {[%emt 0:00:56]} 3. Nc3 {
[%emt 0:00:41]} e5 {[%emt 0:00:37]} 4. Nf3 {[%emt 0:01:21]} exd4 {[%emt 0:00:
00]} 5. Nxd4 {[%emt 0:01:37]} Be7 {[%emt 0:00:36]} 6. Be2 {[%emt 0:09:35]} O-O
{[%emt 0:01:10]} 7. O-O {[%emt 0:00:22]} c6 {[%emt 0:02:36] C41: Philidor
Defence.} 8. Bf3 {[%emt 0:04:11]} Re8 {[%emt 0:09:17]} 9. Re1 {[%emt 0:01:49] 
[#]} Na6 $146 {[%emt 0:09:42]} ({Predecessor:} 9... Bf8 10. Bg5 Nbd7 11. g3 h6
12. Bf4 Ne5 13. Bg2 Qb6 14. b3 Bg4 15. Qd2 c5 {0-1 (44) Kruszynski,W (2313)
-Schulz,K (2293) Katowice 2017}) 10. Bf4 {[%emt 0:05:18]} Nc5 {[%emt 0:04:11]}
11. Bg3 {[%emt 0:03:18]} a5 {[%emt 0:07:18]} 12. a4 {[%emt 0:02:31]} Qb6 {
[%emt 0:03:18]} 13. b3 {[%emt 0:05:00]} Bd7 {[%emt 0:08:51]} 14. h3 {[%emt 0:
00:00]} Rad8 {[%emt 0:03:14]} 15. Qd2 {[%emt 0:00:58]} Bc8 {[%emt 0:03:42]} 16.
Rad1 {[%emt 0:01:28]} Qb4 {[%emt 0:04:39]} 17. Na2 {[%emt 0:17:14]} Qb6 {
[%emt 0:08:33]} 18. Nc3 {[%emt 0:01:42]} Qb4 {[%emt 0:02:44]} 19. Nb1 {[%emt 0:
00:00]} g6 {[%emt 0:04:50]} (19... d5 $11 {is more appropriate.}) 20. c3 $14 {
[%emt 0:02:11]} Qb6 {[%emt 0:00:24]} 21. Qc2 {[%emt 0:03:33]} (21. Na3 $5 {
[%cal Ra3c4]}) 21... Ne6 {[%emt 0:03:35]} 22. Nxe6 {[%emt 0:07:16]} Bxe6 {
[%emt 0:00:15]} 23. c4 {[%emt 0:00:43]} Nd7 {[%emt 0:02:13]} 24. Bg4 {[%emt 0:
00:00]} Nc5 {[%emt 0:02:10] Threatening ...Bxg4.} 25. Nd2 {[%emt 0:01:30]} d5 {
[%emt 0:06:21]} 26. exd5 {[%emt 0:02:30]} (26. cxd5 {keeps more tension.} cxd5
27. Bxe6 Nxe6 28. exd5 Rxd5 29. Nc4) 26... cxd5 {[%emt 0:00:14]} 27. Bxe6 {
[%emt 0:01:24]} Nxe6 {[%emt 0:00:21]} 28. cxd5 {[%emt 0:00:37]} Rxd5 {[%emt 0:
00:00]} 29. Nc4 {[%emt 0:00:52][%csl Yb6,Yd5]} Rxd1 {[%emt 0:01:23]} 30. Rxd1 {
[%emt 0:02:46]} (30. Nxb6 $2 Rxe1+ 31. Kh2 Rd8 $19) 30... Qb4 {[%emt 0:03:00]}
31. Be5 {[%emt 0:01:34]} Rd8 {[%emt 0:02:20]} 32. Rxd8+ {[%emt 0:01:45]} Bxd8 {
[%emt 0:00:08]} 33. Bc3 {[%emt 0:00:44]} Qc5 {[%emt 0:00:30]} 34. Qd2 {[%emt 0:
00:00][%cal Rc4a5]} b6 {[%emt 0:04:36]} 35. Qd7 {[%emt 0:02:05][%cal Yc4d6]}
Bc7 {[%emt 0:00:20] Inhibits Nd6.} 36. Qe8+ {[%emt 0:02:30]} Qf8 {[%emt 0:00:
00]} 37. Qc6 {[%emt 0:01:13]} Qc5 {[%emt 0:00:58]} 38. Qa8+ {[%emt 0:00:23]}
Qf8 {[%emt 0:00:13]} 39. Qf3 {[%emt 0:00:46]} Qd8 {[%emt 0:01:43]} 40. Bf6 {
[%emt 0:05:03]} Qe8 {[%emt 0:00:36]} (40... Nd4 $11 41. Bxd4 Qxd4) 41. Ne3 {
[%emt 0:04:08] White is more active.} Nc5 {[%emt 0:10:27]} 42. Qd5 {[%emt 0:00:
00]} Qe4 {[%emt 0:02:26]} 43. g3 {[%emt 0:03:57]} Qxd5 {[%emt 0:01:15]} 44.
Nxd5 $11 {[%emt 0:00:08] Endgame KBN-KBN} Bd6 {[%emt 0:00:25]} 45. Nxb6 {
[%emt 0:01:13]} Nxb3 {[%emt 0:00:30]} 46. Kf1 {[%emt 0:01:42]} Nc5 {[%emt 0:06:
27]} 47. Bd4 {[%emt 0:01:02]} Ne6 {[%emt 0:01:46]} 48. Bc3 {[%emt 0:00:00]} Bc7
{[%emt 0:09:03]} (48... f5 $11 {remains equal.}) 49. Nd5 $16 {[%emt 0:03:09]} (
{Of course not} 49. Bxa5 f6 $11) 49... Bd8 {[%emt 0:00:29]} 50. Ke2 {[%emt 0:
02:03] Black must now prevent Kd3.} f5 {[%emt 0:01:23]} (50... Kf8 $1 $14) 51.
Kd3 $1 $18 {[%emt 0:00:44]} Nc5+ {[%emt 0:01:04]} 52. Kc4 {[%emt 0:00:27]} Ne4
{[%emt 0:00:16] [#]} 53. Be1 {[%emt 0:01:39]} Kf7 {[%emt 0:00:00] [#]} 54. Kb5
$1 {[%emt 0:02:49]} Ke6 {[%emt 0:00:48]} 55. Nb6 {[%emt 0:00:00]} g5 {[%emt 0:
00:38]} 56. Nc4 {[%emt 0:00:46]} f4 {[%emt 0:00:18]} (56... Bf6 $16 {keeps
fighting.}) 57. gxf4 {[%emt 0:00:32]} ({Much less strong is} 57. Nxa5 Bf6 58.
gxf4 gxf4) ({Not} 57. Bxa5 Bxa5 58. Nxa5 Nxf2 59. gxf4 gxf4 $11) 57... gxf4 {
[%emt 0:00:03]} 58. Nxa5 {[%emt 0:00:14]} (58. f3 $18 Ng5 59. Bh4) 58... Kd5 {
[%emt 0:01:06]} (58... Bh4 $16 {was necessary.}) 59. Nc4 {[%emt 0:00:00]} Kd4
$2 {[%emt 0:00:34]} (59... Nc5 {is a better chance.}) 60. a5 $2 {[%emt 0:01:21]
} (60. f3 $18) 60... Bxa5 $1 $11 {[%emt 0:00:15] The position is equal.} 61.
Bxa5 {[%emt 0:00:19] And now h4 would win.} Kd3 $1 {[%emt 0:00:40]} 62. f3 {
[%emt 0:01:05]} Ng5 {[%emt 0:00:11][%csl Yf3,Yh3]} 63. Ne5+ {[%emt 0:00:00]}
Ke2 {[%emt 0:00:28]} 64. Kc5 {[%emt 0:01:03]} Nxh3 {[%emt 0:00:46]} 65. Bd8 {
[%emt 0:00:30] Threatens to win with Kd4.} Ng1 {[%emt 0:00:11]} 66. Bg5 {
[%emt 0:00:23]} Nxf3 {[%emt 0:00:08]} 67. Bxf4 {[%emt 0:00:09]} Nxe5 {[%emt 0:
00:00]} 68. Bxe5 {[%emt 0:00:04] Black escapes into a draw. Weighted Error
Value: White=0.16 (very precise) /Black=0.24 (precise)} 1/2-1/2

[Event "44th Chess Olympiad Women 2022"]
[Site "Chennai"]
[Date "2022.08.05"]
[Round "7.15"]
[White "Simkunaite, Gabija"]
[Black "Terbe, Julianna"]
[Result "1/2-1/2"]
[WhiteElo "2010"]
[BlackElo "2291"]
[Annotator "ChessBase"]
[PlyCount "78"]
[EventDate "2022.??.??"]
[TimeControl "60"]

1. e4 {[%emt 0:00:05]} c5 {[%emt 0:00:06]} 2. Nf3 {[%emt 0:00:21]} Nc6 {
[%emt 0:00:06]} 3. Bb5 {[%emt 0:00:08]} g6 {[%emt 0:00:24]} 4. O-O {[%emt 0:00:
00]} Bg7 {[%emt 0:00:06]} 5. Bxc6 {[%emt 0:01:17]} dxc6 {[%emt 0:02:03]} 6. Re1
{[%emt 0:03:13]} Nf6 {[%emt 0:01:24]} 7. e5 {[%emt 0:05:20]} Nd5 {[%emt 0:00:
00]} 8. d3 {[%emt 0:00:41]} O-O {[%emt 0:02:56]} 9. Nbd2 {[%emt 0:05:49]} b6 {
[%emt 0:04:41]} 10. Ne4 {[%emt 0:08:17]} Bg4 {[%emt 0:06:00]} 11. Ng3 {[%emt 0:
00:00]} Qb8 {[%emt 0:07:30]} 12. c4 {[%emt 0:16:39]} Nc7 {[%emt 0:01:24]} 13.
Bd2 {[%emt 0:06:01]} Ne6 {[%emt 0:01:55]} 14. Bc3 {[%emt 0:01:46]} Ng5 {
[%emt 0:12:28]} 15. h4 {[%emt 0:03:47]} Bxf3 {[%emt 0:10:37]} 16. Qd2 {[%emt 0:
00:00]} Ne6 {[%emt 0:06:57]} 17. gxf3 {[%emt 0:00:07]} Rd8 {[%emt 0:04:08]} 18.
Re4 {[%emt 0:07:03]} Rd7 {[%emt 0:10:36]} 19. Rd1 {[%emt 0:02:56]} Qf8 {
[%emt 0:01:22]} 20. Qe3 {[%emt 0:04:45]} Rad8 {[%emt 0:02:23]} 21. Ne2 {
[%emt 0:00:54]} Bh6 {[%emt 0:01:18]} 22. f4 {[%emt 0:00:34]} Ng7 {[%emt 0:00:
00]} 23. Qh3 {[%emt 0:01:36]} f5 {[%emt 0:03:49]} 24. Re3 {[%emt 0:01:14]} e6 {
[%emt 0:02:47]} 25. b3 {[%emt 0:01:06]} Nh5 {[%emt 0:01:52]} 26. Rf3 {[%emt 0:
00:00]} Qe7 {[%emt 0:02:56]} 27. Bb2 {[%emt 0:00:55]} b5 {[%emt 0:01:37]} 28.
Ba3 {[%emt 0:01:55]} a5 {[%emt 0:06:11]} 29. Bc1 {[%emt 0:02:05]} a4 {[%emt 0:
00:00]} 30. cxb5 {[%emt 0:02:28]} cxb5 {[%emt 0:00:25]} 31. bxa4 {[%emt 0:00:
00]} b4 {[%emt 0:00:42]} 32. a3 {[%emt 0:01:31]} Ra7 {[%emt 0:01:53]} 33. axb4
{[%emt 0:02:33]} cxb4 {[%emt 0:00:04]} 34. d4 {[%emt 0:01:05]} Rxa4 {[%emt 0:
00:00]} 35. Ng3 {[%emt 0:00:58]} Ra1 {[%emt 0:01:47]} 36. Nxh5 {[%emt 0:00:27]}
gxh5 {[%emt 0:00:03]} 37. Rfd3 {[%emt 0:00:10]} Kh8 {[%emt 0:01:11]} 38. d5 {
[%emt 0:01:29]} Rg8+ {[%emt 0:01:05]} 39. Kf1 {[%emt 0:00:13]} Qc5 {[%emt 0:00:
00]} 1/2-1/2

[Event "44th Chess Olympiad Women 2022"]
[Site "Chennai"]
[Date "2022.08.05"]
[Round "7.16"]
[White "Bobomurodova, Maftuna"]
[Black "Velikic, Adela"]
[Result "1/2-1/2"]
[WhiteElo "1914"]
[BlackElo "2273"]
[Annotator "NA RC"]
[PlyCount "93"]
[EventDate "2022.??.??"]
[TimeControl "60"]

1. e4 {[%emt 0:00:13]} c6 {[%emt 0:00:05]} 2. d4 {[%emt 0:00:10]} d5 {[%emt 0:
00:00]} 3. Nd2 {[%emt 0:00:10]} dxe4 {[%emt 0:00:11]} 4. Nxe4 {[%emt 0:00:08]}
Bf5 {[%emt 0:00:10]} 5. Ng3 {[%emt 0:00:19]} Bg6 {[%emt 0:00:08]} 6. Nf3 {
[%emt 0:00:22]} Nd7 {[%emt 0:00:29]} 7. Bd3 {[%emt 0:00:56]} e6 {[%emt 0:00:25]
} 8. O-O {[%emt 0:04:52]} Ngf6 {[%emt 0:00:35]} 9. c4 {[%emt 0:03:01]} Be7 {
[%emt 0:06:43]} 10. b3 {[%emt 0:08:14]} O-O {[%emt 0:09:34]} 11. Bxg6 {[%emt 0:
00:00]} hxg6 {[%emt 0:00:11]} 12. Bb2 {[%emt 0:01:51]} a5 {[%emt 0:18:32]} 13.
Bc3 {[%emt 0:11:10]} b5 {[%emt 0:10:43]} 14. Ne5 {[%emt 0:07:15]} Qc7 {[%emt 0:
00:00]} 15. Qe2 {[%emt 0:05:06]} b4 {[%emt 0:03:58]} 16. Bb2 {[%emt 0:07:37]}
Nxe5 {[%emt 0:06:39]} 17. dxe5 {[%emt 0:03:20]} Nd7 {[%emt 0:00:17]} 18. f4 {
[%emt 0:09:23]} a4 {[%emt 0:05:02]} 19. Ne4 {[%emt 0:03:52]} Nc5 {[%emt 0:00:
00]} 20. Bd4 {[%emt 0:02:57]} Nxe4 {[%emt 0:02:39]} 21. Qxe4 {[%emt 0:00:03]}
Rfd8 {[%emt 0:01:32]} 22. Rfd1 {[%emt 0:09:04]} Rd7 {[%emt 0:05:04]} 23. Bf2 {
[%emt 0:02:24]} axb3 {[%emt 0:05:52]} 24. axb3 {[%emt 0:00:23]} Ra3 {[%emt 0:
00:00]} 25. Qf3 {[%emt 0:02:47]} Qd8 {[%emt 0:06:11]} 26. h3 {[%emt 0:06:09]}
g5 {[%emt 0:02:49]} 27. fxg5 {[%emt 0:01:52]} Bxg5 {[%emt 0:00:41]} 28. Bc5 {
[%emt 0:02:13]} Rd2 {[%emt 0:02:19]} 29. Rab1 {[%emt 0:02:29]} Raa2 {[%emt 0:
00:00]} 30. Rxd2 {[%emt 0:01:26]} Qxd2 {[%emt 0:00:32]} 31. Rf1 {[%emt 0:00:17]
} Kh7 {[%emt 0:00:31]} 32. Qe4+ {[%emt 0:02:40]} Kg8 {[%emt 0:00:27]} 33. Qxc6
{[%emt 0:00:37]} Be3+ {[%emt 0:00:28]} 34. Bxe3 {[%emt 0:00:09]} Qxe3+ {
[%emt 0:00:13]} 35. Kh1 {[%emt 0:00:00]} Rf2 {[%emt 0:00:48]} 36. Rxf2 {
[%emt 0:01:54]} Qxf2 {[%emt 0:00:06]} 37. Qa8+ {[%emt 0:00:03]} Kh7 {[%emt 0:
00:00]} 38. Qe4+ {[%emt 0:00:03]} g6 {[%emt 0:01:10]} 39. Kh2 {[%emt 0:02:32]}
Qb2 {[%emt 0:00:02]} 40. Qh4+ {[%emt 0:01:39]} Kg8 {[%emt 0:00:09]} 41. Qg3 {
[%emt 0:30:25]} Qc3 {[%emt 0:03:41]} 42. h4 {[%emt 0:00:00]} Kf8 {[%emt 0:00:
00]} 43. Kh3 {[%emt 0:00:00]} Qc2 {[%emt 0:02:44]} 44. Qf3 {[%emt 0:00:00]} Qc3
{[%emt 0:01:43]} 45. Qg3 {[%emt 0:00:00]} Qc2 {[%emt 0:00:09]} 46. Kh2 {
[%emt 0:00:00]} Qc3 {[%emt 0:00:51]} 47. Kh3 {[%emt 0:00:00]} 1/2-1/2

[Event "44th Chess Olympiad Women 2022"]
[Site "Chennai"]
[Date "2022.08.05"]
[Round "7.16"]
[White "Eric, Jovana"]
[Black "Omonova, Umida"]
[Result "1/2-1/2"]
[WhiteElo "2271"]
[BlackElo "2195"]
[Annotator "NA RC"]
[PlyCount "63"]
[EventDate "2022.??.??"]
[TimeControl "60"]

1. e4 {[%emt 0:00:03]} e5 {[%emt 0:00:17]} 2. Nf3 {[%emt 0:00:07]} Nc6 {
[%emt 0:00:07]} 3. Bc4 {[%emt 0:00:11]} Bc5 {[%emt 0:00:15]} 4. d3 {[%emt 0:00:
00]} Nf6 {[%emt 0:00:36]} 5. Nc3 {[%emt 0:00:24]} a6 {[%emt 0:01:39]} 6. Bg5 {
[%emt 0:04:39]} h6 {[%emt 0:02:59]} 7. Bxf6 {[%emt 0:00:45]} Qxf6 {[%emt 0:00:
00]} 8. Nd5 {[%emt 0:00:10]} Qd8 {[%emt 0:01:10]} 9. c3 {[%emt 0:00:27]} d6 {
[%emt 0:03:55]} 10. d4 {[%emt 0:03:05]} Ba7 {[%emt 0:03:52]} 11. dxe5 {[%emt 0:
00:00]} Nxe5 {[%emt 0:01:46]} 12. Nxe5 {[%emt 0:00:21]} dxe5 {[%emt 0:00:06]}
13. Qh5 {[%emt 0:01:29]} O-O {[%emt 0:06:45]} 14. Qxe5 {[%emt 0:23:39]} Re8 {
[%emt 0:05:28]} 15. Qf4 {[%emt 0:00:05]} Qd6 {[%emt 0:01:07]} 16. Qxd6 {
[%emt 0:23:59]} Rxe4+ {[%emt 0:00:14]} 17. Kd2 {[%emt 0:00:03]} cxd6 {[%emt 0:
00:00]} 18. Bd3 {[%emt 0:00:03]} Re5 {[%emt 0:01:25]} 19. Ne3 {[%emt 0:10:00]}
Bd7 {[%emt 0:01:21]} 20. Rae1 {[%emt 0:03:56]} Rae8 {[%emt 0:05:16]} 21. Re2 {
[%emt 0:00:26]} d5 {[%emt 0:02:30]} 22. Rhe1 {[%emt 0:04:02]} d4 {[%emt 0:00:
00]} 23. cxd4 {[%emt 0:00:05]} Bxd4 {[%emt 0:00:12]} 24. Nd1 {[%emt 0:04:52]}
Rxe2+ {[%emt 0:02:15]} 25. Rxe2 {[%emt 0:00:04]} Rd8 {[%emt 0:00:07]} 26. Nc3 {
[%emt 0:00:51]} b5 {[%emt 0:02:32]} 27. a3 {[%emt 0:02:07]} a5 {[%emt 0:10:12]}
28. Kc2 {[%emt 0:01:21]} b4 {[%emt 0:02:14]} 29. axb4 {[%emt 0:00:04]} axb4 {
[%emt 0:00:05]} 30. Nb5 {[%emt 0:00:22]} Bf6 {[%emt 0:02:31]} 31. Bc4 {[%emt 0:
00:00]} Bxb5 {[%emt 0:00:47]} 32. Bxb5 {[%emt 0:00:05]} 1/2-1/2

[Event "44th Chess Olympiad Women 2022"]
[Site "Chennai"]
[Date "2022.08.05"]
[Round "7.16"]
[White "Gajcin, Marina"]
[Black "Malikova, Marjona"]
[Result "1-0"]
[WhiteElo "2271"]
[BlackElo "1756"]
[Annotator "NA RC"]
[PlyCount "129"]
[EventDate "2022.??.??"]
[TimeControl "60"]

1. e4 {[%emt 0:00:02]} c6 {[%emt 0:00:05]} 2. Nf3 {[%emt 0:00:16]} d5 {[%emt 0:
00:00]} 3. Nc3 {[%emt 0:00:05]} Bg4 {[%emt 0:00:35]} 4. h3 {[%emt 0:00:34]}
Bxf3 {[%emt 0:00:38]} 5. Qxf3 {[%emt 0:00:07]} Nf6 {[%emt 0:00:51]} 6. Be2 {
[%emt 0:07:34]} d4 {[%emt 0:04:56]} 7. Nd1 {[%emt 0:08:39]} e5 {[%emt 0:03:32]}
8. O-O {[%emt 0:07:45]} Nbd7 {[%emt 0:04:57]} 9. a4 {[%emt 0:07:38]} Bd6 {
[%emt 0:03:07]} 10. Bc4 {[%emt 0:03:16]} Qe7 {[%emt 0:04:01]} 11. d3 {[%emt 0:
00:00]} h6 {[%emt 0:01:50]} 12. Qe2 {[%emt 0:02:34]} g5 {[%emt 0:02:51]} 13. c3
{[%emt 0:08:04]} O-O-O {[%emt 0:03:35]} 14. g3 {[%emt 0:08:30]} Rdg8 {[%emt 0:
00:00]} 15. b4 {[%emt 0:01:47]} Nf8 {[%emt 0:11:54]} 16. Bb2 {[%emt 0:12:06]}
Ng6 {[%emt 0:03:03]} 17. cxd4 {[%emt 0:15:07]} Nf4 {[%emt 0:10:46]} 18. gxf4 {
[%emt 0:05:14]} gxf4+ {[%emt 0:01:36]} 19. Kh1 {[%emt 0:00:44]} Ng4 {[%emt 0:
00:00]} 20. Qf3 {[%emt 0:01:56]} Qh4 {[%emt 0:01:34]} 21. Bxf7 {[%emt 0:01:07]}
h5 {[%emt 0:10:18]} 22. Bxg8 {[%emt 0:00:24]} Rxg8 {[%emt 0:00:05]} 23. Rg1 {
[%emt 0:00:27]} Qg5 {[%emt 0:01:04]} 24. Rxg4 {[%emt 0:00:32]} hxg4 {[%emt 0:
00:00]} 25. Qxg4+ {[%emt 0:00:06]} Qxg4 {[%emt 0:00:06]} 26. hxg4 {[%emt 0:00:
00]} Rxg4 {[%emt 0:00:27]} 27. dxe5 {[%emt 0:00:55]} Bxb4 {[%emt 0:00:05]} 28.
Bc3 {[%emt 0:01:06]} Be7 {[%emt 0:00:27]} 29. f3 {[%emt 0:01:35]} Rg3 {[%emt 0:
00:00]} 30. Be1 {[%emt 0:01:19]} Rxf3 {[%emt 0:00:07]} 31. Nb2 {[%emt 0:00:32]}
Bc5 {[%emt 0:00:54]} 32. Kg2 {[%emt 0:00:36]} Re3 {[%emt 0:00:07]} 33. Bf2 {
[%emt 0:00:21]} Re2 {[%emt 0:00:06]} 34. Nd1 {[%emt 0:00:04]} Bd4 {[%emt 0:00:
00]} 35. Rb1 {[%emt 0:00:38]} Bxe5 {[%emt 0:00:13]} 36. Kf1 {[%emt 0:01:10]}
Rd2 {[%emt 0:00:38]} 37. d4 {[%emt 0:00:27]} Bxd4 {[%emt 0:00:48]} 38. Ke1 {
[%emt 0:00:14]} Ra2 {[%emt 0:01:57]} 39. Rb4 {[%emt 0:00:54]} Bxf2+ {[%emt 0:
00:00]} 40. Nxf2 {[%emt 0:00:01]} a5 {[%emt 0:00:16]} 41. Rc4 {[%emt 0:12:00]}
Kd7 {[%emt 0:00:22]} 42. Nd3 {[%emt 0:04:38]} b5 {[%emt 0:01:32]} 43. Rd4+ {
[%emt 0:01:55]} Ke6 {[%emt 0:01:33]} 44. axb5 {[%emt 0:03:13]} cxb5 {[%emt 0:
00:00]} 45. Rd5 {[%emt 0:03:58]} b4 {[%emt 0:02:22]} 46. Nxf4+ {[%emt 0:00:13]}
Ke7 {[%emt 0:00:40]} 47. Rb5 {[%emt 0:01:05]} Ke8 {[%emt 0:14:09]} 48. e5 {
[%emt 0:00:40]} Ra3 {[%emt 0:07:41]} 49. e6 {[%emt 0:01:31]} Ke7 {[%emt 0:00:
00]} 50. Rb7+ {[%emt 0:01:17]} Kd6 {[%emt 0:01:58]} 51. Kd2 {[%emt 0:03:17]}
Ra2+ {[%emt 0:00:43]} 52. Ke3 {[%emt 0:00:30]} Ra3+ {[%emt 0:00:14]} 53. Kd4 {
[%emt 0:01:06]} Ra1 {[%emt 0:00:14]} 54. Rb6+ {[%emt 0:00:32]} Kc7 {[%emt 0:00:
00]} 55. Nd5+ {[%emt 0:00:00]} Kc8 {[%emt 0:00:13]} 56. Rc6+ {[%emt 0:00:29]}
Kb7 {[%emt 0:01:39]} 57. Rc7+ {[%emt 0:00:01]} Kb8 {[%emt 0:00:15]} 58. e7 {
[%emt 0:00:55]} Rd1+ {[%emt 0:00:36]} 59. Ke4 {[%emt 0:01:01]} Re1+ {[%emt 0:
00:00]} 60. Ne3 {[%emt 0:00:25]} Kxc7 {[%emt 0:00:07]} 61. e8=Q {[%emt 0:00:06]
} Kb6 {[%emt 0:00:14]} 62. Kd4 {[%emt 0:00:30]} Rc1 {[%emt 0:00:49]} 63. Nd5+ {
[%emt 0:00:11]} Ka6 {[%emt 0:00:17]} 64. Qe2+ {[%emt 0:00:44]} Kb7 {[%emt 0:00:
00]} 65. Qb5+ {[%emt 0:00:08]} 1-0

[Event "44th Chess Olympiad Women 2022"]
[Site "Chennai"]
[Date "2022.08.05"]
[Round "7.16"]
[White "Yakubbaeva, Nilufar"]
[Black "Injac, Teodora"]
[Result "1/2-1/2"]
[WhiteElo "2299"]
[BlackElo "2372"]
[Annotator "TA"]
[PlyCount "92"]
[EventDate "2022.??.??"]
[TimeControl "60"]

{[%evp 9,92,0,2,-4,0,-21,-19,-8,0,-36,-34,-38,-35,-32,-38,-48,-42,-64,-37,-48,
-41,-43,-40,-37,-21,-52,-39,-47,-51,-85,-85,-78,-40,-77,-70,-87,-67,-72,-88,
-80,-71,-70,-46,-45,-31,-39,-33,-38,0,0,0,0,0,0,0,0,0,0,0,0,0,0,0,0,0,0,0,0,0,
0,0,0,0,0,0,0,0,0,0,0,0,0,0,0,0]} 1. c4 {[%emt 0:00:06]} e5 {[%emt 0:00:23]} 2.
Nc3 {[%emt 0:00:07]} Bb4 {[%emt 0:00:30]} 3. Nd5 {[%emt 0:00:07]} Be7 {[%emt 0:
00:00]} 4. d4 {[%emt 0:00:42]} d6 {[%emt 0:00:21]} 5. Nf3 {[%emt 0:02:14]} Nf6
{[%emt 0:05:47]} 6. dxe5 {[%emt 0:02:48] A21: English Opening: 1...e5 2 Nc3.} (
6. Nc3 {with more complications.} exd4 7. Nxd4 d5 8. Bf4) 6... dxe5 {[%emt 0:
00:00] [#]} 7. Nxf6+ $146 {[%emt 0:08:58]} ({Predecessor:} 7. Nxe5 O-O 8. e3 c6
9. Nxf6+ Bxf6 10. Qxd8 Rxd8 11. Nf3 a5 12. Bd2 Bxb2 13. Rb1 {0-1 (45)
Kovacevic,B (2455)-Bosiocic,M (2619) Slovenia 2019}) 7... Bxf6 {[%emt 0:03:10]}
8. Qxd8+ {[%emt 0:02:15]} Kxd8 {[%emt 0:06:44]} 9. Bg5 {[%emt 0:05:30]} Bxg5 {
[%emt 0:04:48]} 10. Nxg5 {[%emt 0:00:13]} Ke7 {[%emt 0:00:05]} 11. e3 {[%emt 0:
00:00]} Bf5 {[%emt 0:10:55]} 12. Rd1 {[%emt 0:12:49]} f6 {[%emt 0:01:35]} 13.
Nf3 {[%emt 0:00:07]} Nd7 {[%emt 0:08:48]} 14. Be2 {[%emt 0:03:48]} a5 {[%emt 0:
00:00]} 15. Nh4 {[%emt 0:10:23]} Be6 {[%emt 0:01:59]} 16. f4 {[%emt 0:09:13]}
Rhd8 {[%emt 0:08:50]} 17. O-O {[%emt 0:04:52]} Nb6 {[%emt 0:21:45]} 18. fxe5 {
[%emt 0:01:53]} fxe5 {[%emt 0:00:11]} 19. Bd3 {[%emt 0:07:56]} g6 {[%emt 0:00:
00]} ({Resist} 19... Bxc4 20. Nf5+ Ke8 21. Nxg7+ Ke7 22. Nf5+ Ke8 23. Bxc4 Rxd1
24. Rxd1 $14) 20. b3 {[%emt 0:04:03] Inhibits Na4.} c6 {[%emt 0:09:43]} 21. Be4
{[%emt 0:05:10]} Rxd1 {[%emt 0:00:50]} 22. Rxd1 {[%emt 0:00:06]} a4 {[%emt 0:
00:00]} 23. Nf3 {[%emt 0:00:58]} axb3 {[%emt 0:00:34]} 24. axb3 {[%emt 0:00:04]
} Ra3 {[%emt 0:00:42]} 25. Bc2 {[%emt 0:01:36]} Bf5 {[%emt 0:03:06]} 26. Bxf5 {
[%emt 0:02:03]} gxf5 {[%emt 0:00:01]} 27. Nxe5 {[%emt 0:02:46]} Rxb3 $15 {
[%emt 0:00:09] Endgame KRN-KRN} ({Much less strong is} 27... Ke6 28. Nf3 $14)
28. Kf2 {[%emt 0:00:57]} Kf6 {[%emt 0:03:13]} 29. Nd7+ {[%emt 0:01:18] The
position is equal.} Nxd7 {[%emt 0:00:05]} 30. Rxd7 $11 {[%emt 0:00:04] KR-KR}
h5 {[%emt 0:00:47]} 31. Kf3 {[%emt 0:00:32]} Rb4 {[%emt 0:00:35]} 32. Rh7 {
[%emt 0:04:16]} Kg6 {[%emt 0:00:54]} 33. Rd7 {[%emt 0:00:05]} Kf6 {[%emt 0:00:
05]} 34. Rh7 {[%emt 0:00:05]} Rxc4 {[%emt 0:02:08] Threatens to win with ...b5.
} 35. Rxb7 {[%emt 0:00:20]} Ke6 {[%emt 0:00:53]} 36. g3 {[%emt 0:00:00]} h4 {
[%emt 0:00:16]} 37. Rh7 {[%emt 0:02:23]} hxg3 {[%emt 0:00:05]} 38. hxg3 {
[%emt 0:00:03]} c5 {[%emt 0:01:09]} 39. Rh8 {[%emt 0:00:17]} Rg4 {[%emt 0:00:
32]} 40. Re8+ {[%emt 0:00:20]} Kd6 {[%emt 0:00:39]} 41. e4 {[%emt 0:00:00]}
Rxe4 {[%emt 0:01:55]} 42. Rxe4 {[%emt 0:00:00]} fxe4+ {[%emt 0:00:04]} 43. Kxe4
{[%emt 0:00:00]} Ke6 {[%emt 0:00:03]} 44. g4 {[%emt 0:00:00]} Kf6 {[%emt 0:00:
04]} 45. Kd5 {[%emt 0:00:00]} Kg5 {[%emt 0:00:04]} 46. Kxc5 {[%emt 0:00:00]}
Kxg4 {[%emt 0:00:03] Weighted Error Value: White=0.07 (flawless) /Black=0.06 
(flawless)} 1/2-1/2